bitfinex/quotes_SOLUSD_20250815
["timestamp","ask_amount","ask_price","bid_price","bid_amount"]
[1755231385148,20.35667301,195.76,195.7,0.03]
[1755231385361,60.66888688,195.76,195.7,0.03]
[1755231385666,68.96463279,195.76,195.7,0.03]
[1755231386066,98.96463279,195.76,195.7,0.03]
[1755231387464,62.76463279,195.76,195.7,0.03]
[1755231388169,98.96463279,195.76,195.7,0.03]
[1755231388377,83.85841722,195.76,195.7,0.03]
[1755231388756,17.65841722,195.76,195.7,0.03]
[1755231388958,53.83841722,195.76,195.7,0.03]
[1755231390376,83.83841722,195.76,195.7,0.03]
[1755231391461,98.94463279,195.76,195.7,0.03]
[1755231392770,98.94463279,195.76,195.71,0.03]
[1755231392988,0.14216157,195.75,195.71,0.03]
[1755231393149,23.54412305,195.72,195.71,0.03]
[1755231393471,63.87633692,195.72,195.71,0.03]
[1755231394255,107.2814227,195.72,195.71,0.03]
[1755231394553,15.24837714,195.71,195.7,0.03]
[1755231394754,27.69633692,195.71,195.7,0.03]
[1755231396167,29.37372399,195.71,195.7,0.03]
[1755231396499,8.29574591,195.71,195.7,0.03]
[1755231396657,137.00893088,195.74,195.7,0.21]
[1755231396983,13.40467679,195.74,195.7,0.21]
[1755231397185,36.18,195.73,195.7,0.21]
[1755231398291,36.18,195.73,195.7,0.03]
[1755231398861,41.28908801,195.73,195.7,0.03]
[1755231399063,8.43790748,195.72,195.7,0.03]
[1755231399367,36.32216157,195.71,195.7,0.03]
[1755231399770,44.61790748,195.71,195.7,0.03]
[1755231399963,42.15176251,195.71,195.7,0.03]
[1755231400160,50.44750842,195.71,195.7,0.03]
[1755231400683,65.55372399,195.71,195.7,0.03]
[1755231400863,68.97147814,195.71,195.7,0.03]
[1755231401060,0.14216157,195.7,195.69,0.03]
[1755231401279,12.57566163,195.7,195.69,0.03]
[1755231401762,17.68552366,195.7,195.69,0.03]
[1755231402163,47.68552366,195.7,195.69,0.03]
[1755231403289,47.68552366,195.7,195.67,0.03]
[1755231403290,62.79173923,195.7,195.67,0.03]
[1755231403476,23.54412305,195.68,195.67,0.03]
[1755231403677,26.9618772,195.68,195.67,0.03]
[1755231403869,28.65450735,195.68,195.67,0.03]
[1755231404069,32.79030555,195.68,195.67,0.03]
[1755231404264,29.37450735,195.68,195.67,0.03]
[1755231404565,95.55450735,195.68,195.67,0.03]
[1755231404967,29.37450735,195.68,195.67,0.03]
[1755231405187,68.96899218,195.68,195.67,0.03]
[1755231406070,68.96899218,195.68,195.66,0.03]
[1755231406270,11.85239231,195.67,195.66,0.03]
[1755231406568,12.57239231,195.67,195.66,0.03]
[1755231406976,27.67860788,195.67,195.66,0.03]
[1755231407181,27.67860788,195.67,195.66,1e-08]
[1755231407379,27.67860788,195.67,195.56,0.18]
[1755231407380,0.14216157,195.66,195.56,0.18]
[1755231407686,8.29574591,195.59,195.56,0.18]
[1755231407868,36.18,195.58,195.57,0.18]
[1755231409185,0.86216157,195.64,195.57,13.58900458]
[1755231409186,8.29574591,195.63,195.57,13.58900458]
[1755231409365,8.29574591,195.63,195.59,8.29574591]
[1755231409366,36.16,195.63,195.59,8.29574591]
[1755231409561,131.9,195.65,195.61,8.29574591]
[1755231409786,168.1,195.65,195.62,0.18]
[1755231410295,36.2,195.67,195.64,8.29574591]
[1755231410465,131.9,195.71,195.65,8.29574591]
[1755231410664,36.2,195.7,195.65,0.18]
[1755231410861,36.2,195.7,195.65,8.47574591]
[1755231411164,36.2,195.7,195.62,17.89157885]
[1755231411165,36.2,195.7,195.62,5.1116995]
[1755231411369,12.77116773,195.76,195.62,5.1116995]
[1755231411370,131.9,195.74,195.69,8.29574591]
[1755231411673,131.9,195.74,195.7,8.47574591]
[1755231412070,131.9,195.74,195.7,5.28974981]
[1755231412272,140.19574591,195.74,195.7,5.10974981]
[1755231412480,140.19574591,195.74,195.68,5.29015504]
[1755231412686,49.60059852,195.73,195.68,5.29015504]
[1755231413078,0.06,195.7,195.68,5.29015504]
[1755231413688,0.06,195.7,195.69,0.18]
[1755231414068,0.06,195.7,195.69,18.61072167]
[1755231414591,0.06,195.7,195.69,5.29012315]
[1755231414891,0.06,195.7,195.68,13.32059852]
[1755231414892,0.06,195.7,195.68,5.11034456]
[1755231415272,0.06,195.7,195.67,13.50059852]
[1755231415273,0.06,195.7,195.67,0.18]
[1755231415468,0.06,195.7,195.66,18.43127686]
[1755231415469,14.10059852,195.7,195.64,0.18]
[1755231415689,49.58059852,195.69,195.64,0.18]
[1755231416094,36.26,195.69,195.64,0.18]
[1755231416396,36.26,195.69,195.65,5.1111679]
[1755231419886,36.98,195.69,195.65,5.1111679]
[1755231420312,36.26,195.69,195.65,18.61176642]
[1755231420497,0.06,195.7,195.68,13.32059852]
[1755231420806,131.9,195.74,195.69,13.83161083]
[1755231421100,0.06,195.78,195.73,13.32059852]
[1755231421303,0.06,195.78,195.74,18.42941633]
[1755231421501,3.48589348,195.78,195.74,18.42941633]
[1755231421676,0.71,195.78,195.74,18.42941633]
[1755231421876,0.06,195.78,195.74,5.10881781]
[1755231422085,0.06,195.78,195.75,13.32059852]
[1755231422289,0.06,195.78,195.74,5.10881781]
[1755231422290,0.71,195.78,195.74,18.42941633]
[1755231423281,0.65,195.77,195.72,5.10933987]
[1755231423489,13.97059852,195.77,195.72,5.10933987]
[1755231423689,0.06,195.74,195.72,5.10933987]
[1755231424403,0.06,195.74,195.67,12.89599319]
[1755231424404,0.71,195.74,195.67,12.89599319]
[1755231424586,0.71,195.74,195.68,13.32059852]
[1755231425000,0.71,195.74,195.67,12.89599319]
[1755231425200,0.71,195.74,195.68,13.32059852]
[1755231425379,0.71,195.74,195.69,13.32059852]
[1755231425585,0.06,195.74,195.69,13.32059852]
[1755231426395,0.06,195.74,195.69,13.44059852]
[1755231426599,14.03059852,195.74,195.68,18.43098282]
[1755231428202,0.71,195.74,195.68,18.43098282]
[1755231428920,0.71,195.74,195.64,0.12]
[1755231428921,13.32059852,195.7,195.64,0.12]
[1755231429076,0.65,195.69,195.62,0.15]
[1755231429284,13.32059852,195.67,195.62,0.15]
[1755231429780,13.32059852,195.66,195.62,5.26170441]
[1755231429980,13.32059852,195.66,195.62,0.03]
[1755231430406,13.97059852,195.66,195.64,0.03]
[1755231430784,36.26,195.68,195.64,0.03]
[1755231430785,13.97059852,195.65,195.64,0.03]
[1755231431397,50.23059852,195.65,195.64,0.03]
[1755231431981,55.34176642,195.65,195.64,0.03]
[1755231432338,74.0191267,195.65,195.64,0.03]
[1755231433217,74.0191267,195.65,195.62,0.03]
[1755231433218,15.24837714,195.64,195.62,0.03]
[1755231433509,31.9979588,195.63,195.62,0.03]
[1755231433704,62.6479588,195.63,195.62,0.03]
[1755231433884,62.6479588,195.63,195.6,0.03]
[1755231434086,18.57497316,195.61,195.6,0.03]
[1755231434299,22.0039563,195.61,195.6,0.03]
[1755231434494,22.6539563,195.61,195.6,0.03]
[1755231434695,52.6539563,195.61,195.6,0.03]
[1755231435196,80.39276009,195.61,195.6,0.03]
[1755231435394,83.81712722,195.61,195.6,0.03]
[1755231435720,15.24837714,195.6,195.57,0.03]
[1755231435899,28.56897566,195.58,195.57,0.03]
[1755231436219,73.36634002,195.58,195.55,0.03]
[1755231436386,13.32059852,195.56,195.55,0.03]
[1755231437016,49.60059852,195.56,195.55,0.03]
[1755231437196,50.25059852,195.56,195.55,0.03]
[1755231437716,49.60059852,195.56,195.55,0.03]
[1755231439006,13.32059852,195.58,195.55,0.03]
[1755231439320,36.28,195.58,195.55,0.03]
[1755231439514,131.9,195.57,195.55,0.03]
[1755231440100,131.9,195.57,195.55,5.32374482]
[1755231440317,131.9,195.62,195.56,13.50059852]
[1755231440510,36.28,195.6,195.57,13.32059852]
[1755231441098,36.28,195.6,195.56,13.50059852]
[1755231441294,36.28,195.6,195.57,13.32059852]
[1755231441633,36.28,195.6,195.57,13.50059852]
[1755231442513,36.28,195.6,195.58,5.11299723]
[1755231443219,131.9,195.62,195.58,18.43359575]
[1755231443536,5.17118211,195.65,195.61,13.32059852]
[1755231443537,0.06,195.65,195.61,13.32059852]
[1755231443718,36.34,195.65,195.62,13.32059852]
[1755231444029,36.34,195.65,195.61,0.18]
[1755231444233,36.34,195.65,195.61,13.32059852]
[1755231444596,36.34,195.65,195.62,5.11195174]
[1755231444802,13.97059852,195.64,195.57,13.32059852]
[1755231445025,36.34,195.65,195.56,5.11352014]
[1755231445026,36.34,195.65,195.59,13.32059852]
[1755231446126,36.34,195.65,195.6,13.32059852]
[1755231446526,36.34,195.65,195.6,13.50059852]
[1755231446730,0.06,195.63,195.6,13.50059852]
[1755231447051,0.06,195.63,195.62,13.32059852]
[1755231447255,0.06,195.65,195.62,13.32059852]
[1755231447425,0.06,195.65,195.64,13.32059852]
[1755231447749,0.06,195.65,195.64,13.50059852]
[1755231448248,0.06,195.65,195.64,18.61202767]
[1755231448818,36.32,195.72,195.64,31.39060055]
[1755231449019,36.32,195.72,195.69,13.32059852]
[1755231449724,36.32,195.72,195.68,13.32059852]
[1755231449942,0.65,195.71,195.66,13.32059852]
[1755231450144,0.65,195.7,195.67,13.32059852]
[1755231450441,36.97,195.72,195.68,5.1103843]
[1755231450733,36.97,195.72,195.66,13.32059852]
[1755231450734,0.65,195.71,195.66,13.32059852]
[1755231450942,0.65,195.71,195.67,13.32059852]
[1755231451237,36.32,195.72,195.65,5.1111679]
[1755231451446,0.65,195.7,195.67,13.32059852]
[1755231451649,0.65,195.7,195.66,13.32059852]
[1755231451851,0.65,195.69,195.66,13.32059852]
[1755231452452,0.65,195.69,195.67,5.11064547]
[1755231452628,49.64059852,195.72,195.67,5.11064547]
[1755231452629,0.65,195.71,195.67,5.11064547]
[1755231452814,0.65,195.7,195.67,5.11064547]
[1755231453035,0.65,195.69,195.67,5.11064547]
[1755231456226,0.65,195.71,195.67,18.43124399]
[1755231456423,132.55,195.71,195.67,18.43124399]
[1755231456739,131.9,195.71,195.69,13.32059852]
[1755231456914,0.65,195.71,195.67,18.43124399]
[1755231457119,0.65,195.71,195.67,5.11064547]
[1755231457432,13.32059852,195.72,195.67,5.11064547]
[1755231457634,0.65,195.7,195.66,5.11088943]
[1755231457849,13.32059852,195.69,195.62,36.24]
[1755231458044,13.97059852,195.7,195.65,5.1111679]
[1755231458345,0.65,195.7,195.65,18.43176642]
[1755231458738,0.65,195.69,195.65,18.43176642]
[1755231459245,0.65,195.69,195.65,5.1111679]
[1755231459431,0.65,195.69,195.65,18.43176642]
[1755231459635,13.97059852,195.73,195.67,13.32059852]
[1755231459951,0.06,195.74,195.69,13.32059852]
[1755231460265,0.06,195.74,195.69,18.43046703]
[1755231460431,0.65,195.73,195.69,18.43046703]
[1755231460819,0.06,195.74,195.72,13.32059852]
[1755231461248,0.06,195.74,195.73,13.32059852]
[1755231461543,0.06,195.74,195.73,13.50059852]
[1755231462126,0.06,195.74,195.73,18.60967735]
[1755231464929,0.06,195.74,195.73,5.10907883]
[1755231465132,0.06,195.74,195.73,18.42967735]
[1755231465726,0.06,195.74,195.73,5.10907883]
[1755231466237,0.06,195.74,195.73,18.42967735]
[1755231467539,0.06,195.74,195.73,13.32059852]
[1755231468158,0.06,195.74,195.7,5.10986203]
[1755231468326,0.06,195.74,195.73,13.32059852]
[1755231468532,0.71,195.74,195.73,13.32059852]
[1755231468728,0.06,195.74,195.73,13.32059852]
[1755231469854,0.71,195.74,195.71,13.32059852]
[1755231470028,0.65,195.73,195.69,36.24]
[1755231470348,0.65,195.73,195.63,12.8090069]
[1755231470349,13.32059852,195.7,195.64,49.56059852]
[1755231470523,13.97059852,195.7,195.64,49.56059852]
[1755231470725,13.97059852,195.7,195.65,13.35059852]
[1755231470726,0.65,195.7,195.65,13.35059852]
[1755231471127,0.65,195.7,195.66,5.11067765]
[1755231471838,0.65,195.69,195.66,5.11067765]
[1755231472040,0.65,195.68,195.65,0.03]
[1755231472328,0.65,195.68,195.65,5.14109695]
[1755231472527,13.97059852,195.7,195.65,5.14109695]
[1755231472955,131.96,195.74,195.66,13.32059852]
[1755231473139,0.65,195.72,195.69,13.32059852]
[1755231473455,0.65,195.72,195.7,5.10986203]
[1755231473828,0.06,195.74,195.71,13.32059852]
[1755231474029,0.06,195.74,195.73,13.32059852]
[1755231475042,0.71,195.74,195.68,18.43072611]
[1755231475267,14.03059852,195.74,195.68,18.43072611]
[1755231475439,0.65,195.73,195.68,18.43072611]
[1755231475654,0.65,195.72,195.68,18.43072611]
[1755231475957,0.65,195.72,195.69,13.32059852]
[1755231476255,0.65,195.72,195.69,18.43047336]
[1755231476440,0.71,195.74,195.69,18.43047336]
[1755231476626,0.06,195.74,195.69,18.43047336]
[1755231476829,0.65,195.73,195.69,18.43047336]
[1755231477357,0.65,195.72,195.68,5.11035784]
[1755231477534,13.32059852,195.73,195.68,5.11035784]
[1755231477739,0.65,195.71,195.67,13.32059852]
[1755231477936,0.65,195.7,195.66,18.43128063]
[1755231478145,0.65,195.7,195.67,13.32059852]
[1755231478444,0.65,195.7,195.67,5.11043046]
[1755231479954,0.65,195.69,195.67,5.11043046]
[1755231480157,0.65,195.69,195.66,18.43145462]
[1755231480332,13.97059852,195.68,195.65,0.03]
[1755231480666,0.65,195.68,195.65,0.03]
[1755231481156,5.1096338,195.71,195.65,0.03]
[1755231481157,13.32059852,195.7,195.65,0.03]
[1755231481739,14.01059852,195.7,195.65,0.03]
[1755231482332,14.01059852,195.7,195.65,5.1411679]
[1755231482658,0.69,195.7,195.65,18.46176642]
[1755231482856,0.69,195.69,195.65,18.46176642]
[1755231483055,0.69,195.69,195.65,5.1411679]
[1755231483870,0.69,195.71,195.65,18.46176642]
[1755231484163,14.01059852,195.71,195.65,18.46176642]
[1755231484543,13.32059852,195.71,195.65,18.46176642]
[1755231484738,131.9,195.73,195.66,8.22882202]
[1755231484941,131.9,195.73,195.7,8.22882202]
[1755231485341,132.59,195.73,195.7,8.22882202]
[1755231485562,0.06,195.74,195.72,8.22882202]
[1755231485769,0.06,195.74,195.73,8.22882202]
[1755231485972,0.06,195.74,195.71,8.22882202]
[1755231486264,0.75,195.74,195.69,8.22882202]
[1755231486568,0.06,195.74,195.73,8.22882202]
[1755231486748,0.06,195.74,195.73,13.31036945]
[1755231487455,0.06,195.74,195.69,19.9319299]
[1755231487758,0.69,195.73,195.69,5.10990502]
[1755231487962,0.69,195.72,195.69,5.10990502]
[1755231488162,0.69,195.71,195.67,41.41060435]
[1755231488472,14.00036945,195.7,195.66,7.15790933]
[1755231488644,0.69,195.69,195.66,5.11087833]
[1755231488971,0.69,195.68,195.65,5.14113384]
[1755231489439,0.69,195.67,195.65,0.03]
[1755231489643,14.00036945,195.67,195.65,0.03]
[1755231490075,0.69,195.67,195.65,0.03]
[1755231490444,0.69,195.66,195.65,0.03]
[1755231490857,0.69,195.67,195.65,0.03]
[1755231491566,131.9,195.72,195.65,0.03]
[1755231491567,17.43558948,195.66,195.65,0.03]
[1755231491793,0.69,195.66,195.65,0.03]
[1755231492078,17.43569611,195.66,195.65,0.03]
[1755231492772,4.12532666,195.66,195.65,0.03]
[1755231492970,36.99,195.69,195.65,0.03]
[1755231493177,17.43484709,195.68,195.65,0.03]
[1755231493351,0.69,195.66,195.65,0.03]
[1755231493557,4.12447764,195.66,195.65,0.03]
[1755231493964,3.43447764,195.67,195.65,0.03]
[1755231494161,0.69,195.67,195.65,0.03]
[1755231494870,0.69,195.66,195.65,0.03]
[1755231495680,13.31036945,195.68,195.65,0.03]
[1755231495850,0.69,195.67,195.65,0.03]
[1755231496050,18.42058743,195.69,195.65,0.03]
[1755231496548,0.69,195.67,195.65,0.03]
[1755231497656,49.61036945,195.7,195.65,0.03]
[1755231497855,131.9,195.71,195.69,13.31036945]
[1755231498064,131.9,195.71,195.7,13.31036945]
[1755231499279,131.9,195.71,195.66,5.11086798]
[1755231499499,0.69,195.7,195.65,0.03]
[1755231499677,145.21036945,195.71,195.65,0.03]
[1755231499869,0.69,195.7,195.65,0.03]
[1755231500073,171.65154797,195.69,195.65,0.03]
[1755231500296,13.31036945,195.66,195.65,0.03]
[1755231500483,37.09,195.68,195.65,0.03]
[1755231500795,131.9,195.69,195.65,0.03]
[1755231500796,0.69,195.66,195.65,0.03]
[1755231500969,0.69,195.67,195.65,0.03]
[1755231501370,13.31036945,195.68,195.65,0.03]
[1755231501599,0.69,195.66,195.65,0.03]
[1755231503072,0.69,195.71,195.65,13.34036945]
[1755231503282,0.69,195.71,195.66,18.42112453]
[1755231503485,0.69,195.71,195.66,5.11075508]
[1755231503809,0.69,195.7,195.66,18.42112453]
[1755231504477,36.38,195.72,195.68,13.31036945]
[1755231504671,37.07,195.72,195.68,13.31036945]
[1755231505302,0.06,195.74,195.71,13.31036945]
[1755231505580,0.06,195.74,195.73,13.31036945]
[1755231506185,0.06,195.74,195.69,0.18]
[1755231506387,0.06,195.74,195.67,15.10621557]
[1755231506388,0.06,195.74,195.73,18.41944828]
[1755231507475,0.06,195.74,195.73,33.70566385]
[1755231507877,0.06,195.74,195.73,34.21657173]
[1755231509080,0.06,195.74,195.73,70.69657173]
[1755231509297,0.06,195.74,195.73,13.31036945]
[1755231509495,0.75,195.74,195.72,5.10930202]
[1755231509697,0.69,195.73,195.7,18.41997499]
[1755231509997,0.06,195.74,195.7,18.41997499]
[1755231510297,0.69,195.73,195.7,18.41997499]
[1755231510482,0.69,195.72,195.7,5.10960554]
[1755231511004,0.69,195.72,195.7,18.41997499]
[1755231511300,0.73,195.74,195.7,18.41997499]
[1755231511599,0.67,195.73,195.7,18.41997499]
[1755231513079,0.67,195.73,195.72,5.10933987]
[1755231513275,0.06,195.74,195.72,5.10933987]
[1755231513498,0.73,195.74,195.72,5.10933987]
[1755231515493,0.73,195.74,195.7,18.42023148]
[1755231516504,0.67,195.73,195.7,18.42023148]
[1755231516931,0.06,195.74,195.71,13.31036945]
[1755231517097,0.73,195.74,195.71,13.31036945]
[1755231518179,0.73,195.74,195.72,5.10933987]
[1755231520500,0.73,195.74,195.7,13.33354322]
[1755231527611,0.06,195.74,195.72,8.22368119]
[1755231527827,0.06,195.74,195.7,5.10986203]
[1755231527828,0.06,195.74,195.73,44.54368119]
[1755231528218,0.06,195.74,195.73,49.65276002]
[1755231530491,0.73,195.74,195.7,13.33354322]
[1755231530688,0.67,195.73,195.7,41.44986203]
[1755231530915,0.67,195.72,195.69,5.11011791]
[1755231531107,8.22368119,195.7,195.66,36.34]
[1755231531393,0.67,195.69,195.66,41.45090667]
[1755231531608,36.34,195.73,195.66,49.67458786]
[1755231531609,8.89368119,195.72,195.66,49.67458786]
[1755231534385,36.34,195.73,195.66,41.45090667]
[1755231534386,8.89368119,195.71,195.66,41.45090667]
[1755231534725,0.67,195.7,195.66,41.45090667]
[1755231534907,0.67,195.7,195.66,49.67458786]
[1755231535226,36.34,195.73,195.66,49.67458786]
[1755231535400,0.67,195.72,195.66,41.63090667]
[1755231535729,0.67,195.72,195.66,49.67458786]
[1755231535910,8.89368119,195.72,195.66,49.67458786]
[1755231536214,140.79368119,195.72,195.66,49.67458786]
[1755231536403,0.67,195.71,195.66,49.67458786]
[1755231536715,0.67,195.7,195.66,49.67458786]
[1755231536918,0.67,195.69,195.66,49.67458786]
[1755231537117,0.67,195.71,195.66,49.67458786]
[1755231537306,0.67,195.7,195.66,49.67458786]
[1755231537509,0.67,195.69,195.66,36.34]
[1755231537707,0.67,195.69,195.66,41.45083224]
[1755231538019,140.79368119,195.72,195.66,49.67451343]
[1755231539090,0.67,195.71,195.66,49.67451343]
[1755231539300,0.67,195.7,195.66,49.67451343]
[1755231540497,140.12368119,195.72,195.66,49.67451343]
[1755231540697,140.79368119,195.72,195.66,49.67451343]
[1755231541092,0.69,195.71,195.66,41.45083224]
[1755231541307,4.12566208,195.71,195.66,41.45083224]
[1755231541506,8.91368119,195.7,195.66,36.34]
[1755231541708,0.69,195.69,195.66,36.34]
[1755231541906,0.69,195.68,195.65,41.42115249]
[1755231542318,132.59,195.72,195.67,8.22368119]
[1755231542507,0.69,195.71,195.67,8.22368119]
[1755231543300,0.69,195.71,195.67,5.11064547]
[1755231543706,0.69,195.7,195.67,5.11064547]
[1755231544025,140.12368119,195.72,195.67,5.11064547]
[1755231544426,0.69,195.71,195.67,5.11064547]
[1755231545630,140.12368119,195.72,195.66,41.39084921]
[1755231545820,0.69,195.7,195.66,41.39084921]
[1755231546010,0.69,195.69,195.66,41.39084921]
[1755231546408,0.69,195.68,195.66,36.28]
[1755231546607,0.69,195.67,195.66,36.28]
[1755231546828,0.69,195.67,195.65,0.03]
[1755231547027,8.91368119,195.69,195.65,5.14111301]
[1755231547209,0.69,195.69,195.65,5.14111301]
[1755231547604,0.69,195.68,195.65,5.14111301]
[1755231548034,8.91368119,195.7,195.65,5.14111301]
[1755231549331,0.69,195.69,195.65,0.03]
[1755231549833,0.69,195.68,195.65,0.03]
[1755231550330,0.69,195.67,195.65,0.03]
[1755231551315,8.22368119,195.69,195.65,0.03]
[1755231551514,0.69,195.66,195.65,0.03]
[1755231552135,0.69,195.68,195.65,0.03]
[1755231554034,0.69,195.7,195.65,0.03]
[1755231554237,0.69,195.69,195.65,0.03]
[1755231554832,11.65754306,195.71,195.65,0.03]
[1755231555034,0.69,195.68,195.65,0.03]
[1755231555922,0.69,195.71,195.67,8.22368119]
[1755231556129,0.69,195.7,195.67,8.22368119]
[1755231556631,131.9,195.72,195.67,8.22368119]
[1755231556949,8.91368119,195.69,195.65,0.03]
[1755231557248,8.22368119,195.68,195.65,0.03]
[1755231557445,8.22368119,195.69,195.65,0.03]
[1755231557949,0.69,195.67,195.65,0.03]
[1755231558653,0.69,195.66,195.65,0.03]
[1755231559361,0.69,195.68,195.65,0.03]
[1755231559733,0.69,195.67,195.65,0.03]
[1755231560456,0.69,195.66,195.65,0.03]
[1755231561344,14.02458786,195.66,195.65,0.03]
[1755231562417,8.91368119,195.66,195.65,0.03]
[1755231562656,17.45859191,195.66,195.65,0.03]
[1755231563520,12.34768524,195.66,195.65,0.03]
[1755231564121,17.45859191,195.66,195.65,0.03]
[1755231564324,9.23491072,195.66,195.65,0.03]
[1755231564725,17.45859191,195.66,195.65,0.03]
[1755231565928,0.69,195.69,195.65,8.25368119]
[1755231566262,131.96,195.7,195.67,8.22368119]
[1755231566637,132.65,195.7,195.67,8.22368119]
[1755231567453,0.69,195.69,195.67,8.22368119]
[1755231567659,132.65,195.7,195.67,8.22368119]
[1755231567834,132.65,195.7,195.67,13.33421054]
[1755231568029,131.96,195.7,195.68,8.22368119]
[1755231568229,0.06,195.7,195.69,8.22368119]
[1755231568443,0.75,195.7,195.65,0.03]
[1755231568648,8.22368119,195.69,195.65,0.03]
[1755231568946,8.22368119,195.68,195.65,0.03]
[1755231569160,8.22368119,195.66,195.65,0.03]
[1755231569537,8.91368119,195.66,195.65,0.03]
[1755231569742,12.34697239,195.66,195.65,0.03]
[1755231570163,8.91368119,195.66,195.65,0.03]
[1755231570341,12.34696045,195.66,195.65,0.03]
[1755231570660,12.48912202,195.66,195.65,0.03]
[1755231570860,0.14216157,195.65,195.61,0.03]
[1755231571040,45.13368119,195.64,195.61,0.03]
[1755231571240,53.6783896,195.64,195.61,0.03]
[1755231571863,50.24511034,195.64,195.61,0.03]
[1755231572159,53.82048626,195.64,195.61,0.03]
[1755231575340,4.10321435,195.64,195.61,0.03]
[1755231575653,40.34321435,195.64,195.61,0.03]
[1755231575850,36.91,195.64,195.61,0.03]
[1755231576359,36.24,195.64,195.61,0.03]
[1755231577131,0.06,195.7,195.61,0.03]
[1755231577132,0.06,195.7,195.62,8.22368119]
[1755231577459,8.22368119,195.68,195.62,13.33557057]
[1755231577648,8.22368119,195.68,195.63,13.36529636]
[1755231577649,4.10365607,195.67,195.63,13.36529636]
[1755231577849,4.10365607,195.67,195.63,5.14161517]
[1755231578246,0.67,195.66,195.63,0.03]
[1755231579651,8.89368119,195.65,195.63,0.03]
[1755231579851,8.22368119,195.64,195.63,0.03]
[1755231580258,8.89368119,195.64,195.63,0.03]
[1755231580562,36.24,195.66,195.63,0.03]
[1755231581262,36.91,195.66,195.63,0.03]
[1755231582069,0.67,195.65,195.63,0.03]
[1755231582464,8.89368119,195.64,195.63,0.03]
[1755231582853,17.58198305,195.64,195.63,0.03]
[1755231583054,17.58198305,195.64,195.61,0.03]
[1755231583055,131.9,195.63,195.61,0.03]
[1755231583259,179.79839233,195.62,195.61,0.03]
[1755231583465,180.46839233,195.62,195.61,0.03]
[1755231584477,185.72250564,195.62,195.61,0.03]
[1755231585357,53.82250564,195.62,195.61,0.03]
[1755231585567,98.92872121,195.62,195.61,0.03]
[1755231586454,62.68872121,195.62,195.61,0.03]
[1755231586654,98.94872121,195.62,195.61,0.03]
[1755231586968,98.94689856,195.62,195.61,0.03]
[1755231590376,68.94689856,195.62,195.61,0.03]
[1755231590783,15.24837714,195.61,195.59,0.03]
[1755231591069,0.14216157,195.58,195.57,0.03]
[1755231591269,54.92126563,195.58,195.57,0.03]
[1755231591473,63.81494682,195.58,195.57,0.03]
[1755231591775,36.24,195.58,195.57,0.03]
[1755231593461,44.46368119,195.58,195.57,0.03]
[1755231594960,45.13368119,195.58,195.57,0.03]
[1755231595665,50.24667842,195.58,195.57,0.03]
[1755231596076,50.38883999,195.58,195.57,0.03]
[1755231596250,53.81628973,195.58,195.57,0.03]
[1755231597271,50.38883999,195.58,195.57,0.03]
[1755231597985,45.13368119,195.58,195.57,0.03]
[1755231598351,50.38883999,195.58,195.57,0.03]
[1755231600677,45.27584276,195.58,195.57,0.03]
[1755231600858,44.60584276,195.58,195.57,0.03]
[1755231601792,8.36584276,195.58,195.57,0.03]
[1755231602083,45.29584276,195.58,195.57,0.03]
[1755231602293,50.40883999,195.58,195.57,0.03]
[1755231602481,14.18883999,195.58,195.57,0.03]